fUST/lending_fUST_20240315
["ID","MTS","AMOUNT","RATE_DAILY","PERIOD"]
[318941047,1710457837826,-500.0,0.00020855,2]
[318941049,1710457837836,-500.0,0.00020855,2]
[318941051,1710457837845,-500.0,0.00020855,2]
[318941053,1710457837854,-500.0,0.00020855,2]
[318941054,1710457837863,-540.66,0.00020855,2]
[318941056,1710457837873,-500.0,0.00020855,2]
[318941058,1710457837883,-500.0,0.00020855,2]
[318941060,1710457837892,-500.0,0.00020855,2]
[318941062,1710457837901,-500.0,0.00020855,2]
[318941064,1710457837910,-500.0,0.00020855,2]
[318941066,1710457837919,-502.44003634,0.00020855,2]
[318941068,1710457837928,-500.0,0.00020855,2]
[318941069,1710457837937,-500.0,0.00020855,2]
[318941071,1710457837946,-500.0,0.00020855,2]
[318941073,1710457837956,-500.0,0.00020855,2]
[318941075,1710457837965,-500.0,0.00020855,2]
[318941077,1710457837974,-500.0,0.00020855,2]
[318941078,1710457837983,-303.2013292,0.00020855,2]
[318941079,1710457837992,-450.52311747,0.00020855,2]
[318941080,1710457838001,-272.32427809,0.00020855,2]
[318941081,1710457838011,-500.0,0.00020855,2]
[318941082,1710457838020,-500.0,0.00020855,2]
[318941083,1710457838029,-73.75316922,0.00020855,2]
[318941094,1710457842919,-348.02,0.00020855,2]
[318941148,1710458685016,196.450085,0.00019897,2]
[318941152,1710458776974,4224.79769627,0.00020228,5]
[318941253,1710459034286,-426.98215575,0.00020755,2]
[318941255,1710459034298,-131.27586104,0.00020755,2]
[318941257,1710459034307,-245.6810732,0.00020755,2]
[318941329,1710459038014,-754.3189268,0.00020755,2]
[318941331,1710459038024,-376.74770808,0.00020854,2]
[318941333,1710459038034,-295.46690159,0.00020855,2]
[318941386,1710459041153,-54.14132229,0.00020855,2]
[318941388,1710459041163,-155.16562031,0.00020855,2]
[318941390,1710459041174,-500.0,0.00020855,2]
[318941392,1710459041184,-500.0,0.00020855,2]
[318941394,1710459041194,-500.0,0.00020855,2]
[318941396,1710459041203,-500.0,0.00020855,2]
[318941405,1710459041298,-255.33622864,0.00020855,2]
[318941406,1710459041311,-500.0,0.00020855,2]
[318941407,1710459041320,-295.97236771,0.00020855,2]
[318941408,1710459041330,-500.0,0.00020855,2]
[318941409,1710459041339,-500.0,0.00020855,2]
[318941410,1710459041349,-161.18566081,0.00020855,2]
[318941411,1710459041362,-500.0,0.00020855,2]
[318941412,1710459041371,-500.0,0.00020855,2]
[318941413,1710459041381,-500.0,0.00020855,2]
[318941414,1710459041392,-500.0,0.00020855,2]
[318941415,1710459041401,-500.0,0.00020855,2]
[318941416,1710459041410,-500.0,0.00020855,2]
[318941417,1710459041420,-500.0,0.00020855,2]
[318941418,1710459041430,-500.0,0.00020855,2]
[318941419,1710459041439,-608.8,0.00020855,2]
[318941420,1710459041448,-607.8,0.00020855,2]
[318941421,1710459041457,-441.63066804,0.00020855,2]
[318941422,1710459041467,-265.86781922,0.00020855,2]
[318941423,1710459041477,-641.59,0.00020855,2]
[318941424,1710459041486,-500.0,0.00020855,2]
[318941425,1710459041495,-500.0,0.00020855,2]
[318941426,1710459041504,-182.48132285,0.00020855,2]
[318941427,1710459041513,-500.0,0.00020855,2]
[318941428,1710459041523,-500.0,0.00020855,2]
[318941429,1710459041533,-199.94524101,0.00020855,2]
[318941430,1710459041542,-170.61938816,0.00020855,2]
[318941431,1710459041557,-500.0,0.00020855,2]
[318941432,1710459041566,-500.0,0.00020855,2]
[318941433,1710459041576,-500.0,0.00020855,2]
[318941434,1710459041586,-500.0,0.00020855,2]
[318941435,1710459041597,-500.0,0.00020855,2]
[318941436,1710459041610,-500.0,0.00020855,2]
[318941437,1710459041620,-500.0,0.00020855,2]
[318941438,1710459041628,-500.0,0.00020855,2]
[318941439,1710459041638,-615.92740705,0.00020855,2]
[318941440,1710459041649,-552.28439787,0.00020855,2]
[318941441,1710459041659,-500.0,0.00020855,2]
[318941442,1710459041669,-500.0,0.00020855,2]
[318941443,1710459041678,-289.06182963,0.00020855,2]
[318941444,1710459041687,-345.76984606,0.00020855,2]
[318941445,1710459041697,-191.03482667,0.00020855,2]
[318941446,1710459041706,-122766.20613598,0.00020855,10]
[318941447,1710459041718,-6607.30002287,0.00020855,10]
[318941448,1710459041730,-36963.96095465,0.00020855,10]
[318941449,1710459041742,-3837.66432007,0.00020855,10]
[318941471,1710459043024,-350.29056623,0.00020855,2]
[318941472,1710459043084,-149.70943377,0.00020855,2]
[318941473,1710459043093,-500.0,0.00020855,2]
[318941474,1710459043103,-500.0,0.00020855,2]
[318941475,1710459043113,-343.68,0.00020855,2]
[318941476,1710459043122,-3069.0490525,0.00020855,10]
[318941575,1710459814294,-14357.0,0.00020855,10]
[318941787,1710460238109,-1000.0,0.00020755,2]
[318941788,1710460238119,-24.25,0.000208,2]
[318941789,1710460238132,-188.76699324,0.000208,2]
[318941790,1710460238144,-1882.92818814,0.00020853,2]
[318941791,1710460238154,-268.5427301,0.00020854,2]
[318941792,1710460238163,-500.0,0.00020855,2]
[318941793,1710460238173,-500.0,0.00020855,2]
[318941794,1710460238182,-500.0,0.00020855,2]
[318941795,1710460238192,-209.25943313,0.00020855,2]
[318941796,1710460238202,-500.0,0.00020855,2]
[318941797,1710460238211,-500.0,0.00020855,2]
[318941799,1710460238220,-500.0,0.00020855,2]
[318941801,1710460238230,-500.0,0.00020855,2]
[318941802,1710460238239,-500.0,0.00020855,2]
[318941803,1710460238248,-500.0,0.00020855,2]
[318941804,1710460238257,-1770.17589589,0.00020855,10]
[318941805,1710460238269,-2510.70026131,0.00020855,10]
[318941869,1710460241315,-14581.13191545,0.00020855,10]
[318941880,1710460243256,-90002.00088,0.00020855,10]
[318941881,1710460243267,-707.04000013,0.00020855,10]
[318942006,1710461432412,-858.87844997,0.000206,2]
[318942007,1710461432424,-14265.0,0.000206,2]
[318942008,1710461432469,-4223.2508062,0.000206,2]
[318942019,1710461438314,-1333.4190839,0.000206,2]
[318942020,1710461438377,-685.84112632,0.000206,2]
[318942021,1710461438389,-855.51487763,0.000206,2]
[318942029,1710461440447,-48737.08565598,0.000206,2]
[318942030,1710461440457,-201.71110464,0.00020655,4]
[318942031,1710461440466,-1000.0,0.00020755,2]
[318942033,1710461440476,-203.29190553,0.00020855,2]
[318942034,1710461440487,-500.0,0.00020855,2]
[318942035,1710461440497,-500.0,0.00020855,2]
[318942036,1710461440507,-500.0,0.00020855,2]
[318942037,1710461440517,-283.16181746,0.00020855,2]
[318942040,1710461440527,-500.0,0.00020855,2]
[318942043,1710461440542,-500.0,0.00020855,2]
[318942044,1710461440552,-500.0,0.00020855,2]
[318942045,1710461440561,-500.0,0.00020855,2]
[318942046,1710461440571,-215.74447393,0.00020855,2]
[318942047,1710461440581,-500.0,0.00020855,2]
[318942048,1710461440590,-502.7278985,0.00020855,2]
[318942049,1710461440601,-429.33176006,0.00020855,2]
[318942050,1710461440610,-500.0,0.00020855,2]
[318942051,1710461440623,-229.00547829,0.00020855,2]
[318942052,1710461440633,-500.0,0.00020855,2]
[318942053,1710461440642,-500.0,0.00020855,2]
[318942054,1710461440651,-500.0,0.00020855,2]
[318942055,1710461440659,-500.0,0.00020855,2]
[318942056,1710461440668,-270.99452171,0.00020855,2]
[318942057,1710461440677,-33673.06903416,0.00020855,10]
[318942058,1710461440788,-12448.58332373,0.00020855,10]
[318942059,1710461440800,-39500.02561612,0.00020855,10]
[318942060,1710461440812,-1000.0114866,0.00020855,10]
[318942074,1710461443434,-395.92,0.00020855,10]
[318942077,1710461446613,-14457.26558043,0.00020855,10]
[318942078,1710461446625,-1944807.49420914,0.00020855,10]
[318942082,1710461498274,8570.8967084,0.00020132,2]
[318942083,1710461563513,12713.6547956,0.00020132,2]
[318942090,1710461806653,158.061503,0.00019855,2]
[318942096,1710461829231,2282.2106084,0.00019855,2]
[318942289,1710462202219,200.0,0.000205,2]
[318942416,1710462633157,-1000.0,0.00020755,2]
[318942418,1710462633167,-933.87571358,0.000208,2]
[318942420,1710462633176,-321.93735775,0.00020853,2]
[318942422,1710462633185,-294.77831715,0.00020854,2]
[318942424,1710462633194,-2020.56022276,0.00020854,2]
[318942426,1710462633204,-500.0,0.00020854,2]
[318942428,1710462633213,-191.54405702,0.00020854,2]
[318942430,1710462633222,-3485.06721835,0.00020854,2]
[318942432,1710462633231,-516.850155,0.00020855,2]
[318942434,1710462633240,-500.0,0.00020855,2]
[318942436,1710462633249,-500.0,0.00020855,2]
[318942438,1710462633259,-500.0,0.00020855,2]
[318942440,1710462633268,-500.0,0.00020855,2]
[318942442,1710462633278,-500.0,0.00020855,2]
[318942444,1710462633287,-500.0,0.00020855,2]
[318942446,1710462633297,-501.3212413,0.00020855,2]
[318942448,1710462633306,-500.0,0.00020855,2]
[318942450,1710462633315,-500.0,0.00020855,2]
[318942452,1710462633324,-187.37706428,0.00020855,2]
[318942454,1710462633333,-622.35,0.00020855,2]
[318942456,1710462633343,-622.35,0.00020855,2]
[318942458,1710462633351,-622.35,0.00020855,2]
[318942459,1710462633360,-622.35,0.00020855,2]
[318942461,1710462633370,-622.35,0.00020855,2]
[318942463,1710462633379,-622.35,0.00020855,2]
[318942465,1710462633388,-622.35,0.00020855,2]
[318942467,1710462633399,-622.35,0.00020855,2]
[318942469,1710462633409,-622.35,0.00020855,2]
[318942471,1710462633418,-622.35,0.00020855,2]
[318942472,1710462633427,-421.04966428,0.00020855,2]
[318942475,1710462633439,-201.30033572,0.00020855,2]
[318942477,1710462633448,-622.35,0.00020855,2]
[318942478,1710462633457,-622.35,0.00020855,2]
[318942480,1710462633467,-622.35,0.00020855,2]
[318942482,1710462633476,-622.35,0.00020855,2]
[318942484,1710462633486,-622.35,0.00020855,2]
[318942486,1710462633495,-622.35,0.00020855,2]
[318942488,1710462633504,-622.35,0.00020855,2]
[318942490,1710462633514,-622.35,0.00020855,2]
[318942492,1710462633523,-622.35,0.00020855,2]
[318942494,1710462633533,-622.35,0.00020855,2]
[318942496,1710462633543,-622.35,0.00020855,2]
[318942498,1710462633552,-622.35,0.00020855,2]
[318942500,1710462633562,-622.35685047,0.00020855,2]
[318942502,1710462633571,-41976.31863077,0.00020855,10]
[318943003,1710462638819,-50424.29999995,0.00020855,10]
[318943004,1710462638856,-3017.83139576,0.00020855,10]
[318943690,1710462647384,-500.0,0.00020855,10]
[318943692,1710462647397,-3602.75,0.00020855,10]
[318947992,1710462775474,447.30925345,0.00020448,2]
[318948007,1710462827110,198.090162,0.00019854,2]
[318948027,1710462854634,402.19173228,0.00020343,2]
[318948057,1710463000149,10784.7945924,0.00019854,2]
[318948173,1710463832602,-173.74287634,0.00020755,2]
[318948175,1710463832612,-1000.0,0.00020755,2]
[318948177,1710463832621,-11401.51664601,0.00020768,2]
[318948179,1710463832632,-325.84919186,0.00020853,2]
[318948181,1710463832640,-183.10678877,0.00020853,2]
[318948184,1710463832649,-217.11362545,0.00020854,2]
[318948187,1710463832659,-306.25080477,0.00020855,2]
[318948190,1710463832668,-500.0,0.00020855,2]
[318948193,1710463832677,-500.0,0.00020855,2]
[318948195,1710463832686,-500.0,0.00020855,2]
[318948197,1710463832696,-500.0,0.00020855,2]
[318948199,1710463832705,-500.0,0.00020855,2]
[318948201,1710463832714,-500.0,0.00020855,2]
[318948203,1710463832723,-500.0,0.00020855,2]
[318948205,1710463832732,-358.09678446,0.00020855,2]
[318948208,1710463832741,-500.0,0.00020855,2]
[318948210,1710463832761,-500.0,0.00020855,2]
[318948212,1710463832771,-500.0,0.00020855,2]
[318948214,1710463832780,-500.0,0.00020855,2]
[318948216,1710463832789,-500.0,0.00020855,2]
[318948218,1710463832798,-500.0,0.00020855,2]
[318948220,1710463832808,-500.0,0.00020855,2]
[318948222,1710463832817,-500.0,0.00020855,2]
[318948225,1710463832827,-505.43267185,0.00020855,2]
[318948227,1710463832836,-402.19173228,0.00020855,2]
[318948229,1710463832845,-879.75431316,0.00020855,10]
[318948231,1710463832858,-581.71068819,0.00020855,10]
[318948233,1710463832870,-574.69239176,0.00020855,10]
[318948236,1710463832884,-7746.85382224,0.00020855,10]
[318948238,1710463832895,-4381.8,0.00020855,10]
[318948717,1710463837730,-69505.5036132,0.00020855,10]
[318948718,1710463837796,-6453.97905205,0.00020855,10]
[318948885,1710463839948,-5147.29236132,0.00020855,10]
[318950332,1710463854830,155.16562031,0.00019854,2]
[318951045,1710463862147,1436.07,0.000205,2]
[318952253,1710464030425,342.53070934,0.0002044,2]
[318952266,1710464165714,500.27420964,0.0002,2]
[318952293,1710464192505,250.0,0.00019794,2]
[318952448,1710465032116,-187.3972946,0.0002072,2]
[318952449,1710465032127,-155.13341474,0.00020721,2]
[318952450,1710465032138,-235.1128,0.00020751,2]
[318952452,1710465032149,-161.66189775,0.00020754,2]
[318952454,1710465032159,-144.71155185,0.00020755,2]
[318952494,1710465038155,-2569.72453173,0.00020755,2]
[318952922,1710465042688,-521.94890059,0.00020548,2]
[318952924,1710465042697,-13920.94245053,0.00020755,2]
[318952926,1710465042706,-1000.0,0.00020755,2]
[318952928,1710465042715,-161.66189775,0.00020769,2]
[318952930,1710465042724,-161.66189775,0.00020785,2]
[318952932,1710465042733,-1017.87,0.000208,7]
[318952934,1710465042742,-174.0,0.000208,2]
[318952936,1710465042751,-161.66189775,0.000208,2]
[318952938,1710465042760,-500.0,0.00020853,2]
[318952940,1710465042768,-170.61938816,0.00020853,2]
[318952942,1710465042777,-573.62428806,0.00020853,2]
[318952944,1710465042787,-179.7888452,0.00020853,2]
[318952946,1710465042796,-1951.90972773,0.00020853,2]
[318952948,1710465042805,-3145.34600817,0.00020853,2]
[318952950,1710465042815,-3500.01988252,0.00020853,2]
[318952952,1710465042824,-163.32544229,0.00020853,2]
[318952954,1710465042833,-155.53579294,0.00020853,2]
[318952956,1710465042842,-2252.25383344,0.00020853,2]
[318952958,1710465042851,-669.42782765,0.00020853,2]
[318952960,1710465042860,-616.25212117,0.00020853,2]
[318952962,1710465042869,-524.29941204,0.00020853,2]
[318952964,1710465042878,-404.59380981,0.00020853,2]
[318952966,1710465042887,-331.37218946,0.00020853,2]
[318952968,1710465042896,-290.63597598,0.00020853,2]
[318952970,1710465042905,-180.429772,0.00020853,2]
[318952971,1710465042914,-155.98713397,0.00020853,2]
[318952974,1710465042924,-155.99696445,0.00020853,2]
[318952975,1710465042934,-155.30349036,0.00020853,2]
[318952978,1710465042943,-167.2046961,0.00020853,2]
[318952979,1710465042952,-580.13342155,0.00020853,2]
[318952981,1710465042962,-165.71931182,0.00020853,2]
[318952983,1710465042971,-204.82799833,0.00020853,2]
[318952985,1710465042980,-993.81205494,0.00020853,2]
[318952987,1710465042990,-338.65,0.00020853,2]
[318952989,1710465042999,-191.4800443,0.00020853,2]
[318952992,1710465043009,-690.59173185,0.00020853,2]
[318952995,1710465043029,-218.17528736,0.00020853,2]
[318952996,1710465043039,-1079.66925,0.00020853,2]
[318952998,1710465043048,-8081.977025,0.00020854,2]
[318953001,1710465043058,-500.0,0.00020854,2]
[318953003,1710465043068,-294.88454091,0.00020854,2]
[318953017,1710465043193,-208.43582616,0.00020854,2]
[318953019,1710465043205,-184.69076473,0.00020854,2]
[318953021,1710465043215,-500.0,0.00020855,2]
[318953023,1710465043226,-500.0,0.00020855,2]
[318953025,1710465043236,-500.0,0.00020855,2]
[318953028,1710465043247,-500.0,0.00020855,2]
[318953030,1710465043259,-500.0,0.00020855,2]
[318953032,1710465043269,-555.2729762,0.00020855,2]
[318953034,1710465043279,-645.09447627,0.00020855,2]
[318953036,1710465043289,-500.0,0.00020855,2]
[318953038,1710465043298,-500.0,0.00020855,2]
[318953040,1710465043307,-500.0,0.00020855,2]
[318953042,1710465043316,-216.83818254,0.00020855,2]
[318953044,1710465043326,-500.0,0.00020855,2]
[318953046,1710465043335,-500.0,0.00020855,2]
[318953047,1710465043344,-557.10947549,0.00020855,2]
[318953049,1710465043354,-213.20150109,0.00020855,2]
[318953051,1710465043363,-500.0,0.00020855,2]
[318953054,1710465043373,-500.0,0.00020855,2]
[318953055,1710465043382,-500.0,0.00020855,2]
[318953057,1710465043391,-486.20905218,0.00020855,2]
[318953060,1710465043400,-240.00674681,0.00020855,2]
[318953061,1710465043409,-500.0,0.00020855,2]
[318953063,1710465043419,-500.0,0.00020855,2]
[318953065,1710465043429,-500.0,0.00020855,2]
[318953067,1710465043439,-500.0,0.00020855,2]
[318953070,1710465043451,-500.0,0.00020855,2]
[318953071,1710465043462,-500.0,0.00020855,2]
[318953074,1710465043472,-494.44,0.00020855,2]
[318953075,1710465043481,-500.0,0.00020855,2]
[318953077,1710465043490,-500.0,0.00020855,2]
[318953080,1710465043500,-502.94412023,0.00020855,2]
[318953082,1710465043509,-500.0,0.00020855,2]
[318953084,1710465043518,-500.0,0.00020855,2]
[318953085,1710465043527,-500.0,0.00020855,2]
[318953088,1710465043537,-608.05773769,0.00020855,2]
[318953089,1710465043547,-500.0,0.00020855,2]
[318953092,1710465043557,-500.0,0.00020855,2]
[318953093,1710465043566,-500.0,0.00020855,2]
[318953096,1710465043576,-500.0,0.00020855,2]
[318953098,1710465043585,-500.0,0.00020855,2]
[318953099,1710465043594,-500.0,0.00020855,2]
[318953102,1710465043605,-500.0,0.00020855,2]
[318953103,1710465043614,-500.0,0.00020855,2]
[318953105,1710465043623,-500.0,0.00020855,2]
[318953107,1710465043632,-500.0,0.00020855,2]
[318953110,1710465043642,-500.0,0.00020855,2]
[318953111,1710465043652,-500.0,0.00020855,2]
[318953113,1710465043661,-500.0,0.00020855,2]
[318953115,1710465043670,-71.02706101,0.00020855,2]
[318953118,1710465043684,-372.43293899,0.00020855,2]
[318953120,1710465043693,-500.0,0.00020855,2]
[318953122,1710465043703,-25.9666102,0.00020855,2]
[318953125,1710465043718,-474.0333898,0.00020855,2]
[318953127,1710465043728,-500.0,0.00020855,2]
[318953129,1710465043737,-500.0,0.00020855,2]
[318953131,1710465043746,-500.0,0.00020855,2]
[318953133,1710465043755,-500.0,0.00020855,2]
[318953135,1710465043763,-136.04775751,0.00020855,2]
[318958706,1710465223229,192.293004,0.00019812,2]
[318958707,1710465550281,2000.0,0.00020474,2]
[318958740,1710465645713,192.293004,0.00019812,2]
[318958790,1710466232828,-236.28942058,0.00020753,2]
[318958792,1710466232838,-161.66189775,0.00020754,2]
[318958793,1710466232849,-1000.0,0.00020755,2]
[318958794,1710466232857,-161.66189775,0.00020769,2]
[318958795,1710466232867,-161.66189775,0.00020785,2]
[318958796,1710466232876,-200.07,0.000208,2]
[318958797,1710466232885,-161.66189775,0.000208,2]
[318958798,1710466232894,-500.0,0.00020852,2]
[318958799,1710466232903,-47674.13870623,0.00020853,2]
[318958800,1710466232916,-155.16757722,0.00020854,2]
[318958801,1710466232925,-172.21054297,0.00020854,2]
[318958802,1710466232934,-500.0,0.00020854,2]
[318958803,1710466232944,-500.0,0.00020854,2]
[318958804,1710466232953,-500.0,0.00020855,2]
[318958805,1710466232964,-500.0,0.00020855,2]
[318958806,1710466232974,-571.01,0.00020855,2]
[318958807,1710466232983,-500.0,0.00020855,2]
[318958808,1710466232992,-500.0,0.00020855,2]
[318958809,1710466233001,-500.0,0.00020855,2]
[318958810,1710466233011,-500.0,0.00020855,2]
[318958811,1710466233020,-500.0,0.00020855,2]
[318958812,1710466233029,-500.0,0.00020855,2]
[318958813,1710466233039,-500.0,0.00020855,2]
[318958814,1710466233047,-500.0,0.00020855,2]
[318958815,1710466233057,-500.0,0.00020855,2]
[318958816,1710466233067,-500.0,0.00020855,2]
[318958817,1710466233076,-500.0,0.00020855,2]
[318958818,1710466233085,-500.0,0.00020855,2]
[318958819,1710466233094,-500.0,0.00020855,2]
[318958820,1710466233103,-554.14132229,0.00020855,2]
[318958821,1710466233113,-500.0,0.00020855,2]
[318958822,1710466233122,-500.0,0.00020855,2]
[318958823,1710466233131,-500.0,0.00020855,2]
[318958824,1710466233142,-500.0,0.00020855,2]
[318958825,1710466233151,-500.0,0.00020855,2]
[318958826,1710466233163,-500.0,0.00020855,2]
[318958827,1710466233172,-500.0,0.00020855,2]
[318958828,1710466233181,-500.0,0.00020855,2]
[318958829,1710466233190,-204.41272195,0.00020855,2]
[318958830,1710466233200,-268.52357986,0.00020855,2]
[318958831,1710466233209,-500.0,0.00020855,2]
[318958832,1710466233218,-500.0,0.00020855,2]
[318958833,1710466233227,-500.0,0.00020855,2]
[318958834,1710466233237,-500.0,0.00020855,2]
[318958835,1710466233247,-353.61616877,0.00020855,2]
[318958836,1710466233256,-500.0,0.00020855,2]
[318958837,1710466233265,-500.0,0.00020855,2]
[318958838,1710466233275,-500.0,0.00020855,2]
[318958839,1710466233284,-500.0,0.00020855,2]
[318958840,1710466233294,-500.0,0.00020855,2]
[318958841,1710466233303,-500.0,0.00020855,2]
[318958842,1710466233312,-500.0,0.00020855,2]
[318958843,1710466233321,-500.0,0.00020855,2]
[318958844,1710466233330,-500.0,0.00020855,2]
[318958845,1710466233340,-500.0,0.00020855,2]
[318958846,1710466233349,-500.0,0.00020855,2]
[318958847,1710466233358,-500.0,0.00020855,2]
[318958848,1710466233367,-500.0,0.00020855,2]
[318958849,1710466233377,-500.0,0.00020855,2]
[318958850,1710466233386,-500.0,0.00020855,2]
[318958851,1710466233395,-500.0,0.00020855,2]
[318958852,1710466233404,-500.0,0.00020855,2]
[318958853,1710466233416,-500.0,0.00020855,2]
[318958854,1710466233425,-500.0,0.00020855,2]
[318958855,1710466233434,-500.0,0.00020855,2]
[318958856,1710466233443,-500.0,0.00020855,2]
[318958857,1710466233453,-500.0,0.00020855,2]
[318958858,1710466233462,-427.88222629,0.00020855,2]
[318958859,1710466233471,-500.9116836,0.00020855,2]
[318958860,1710466233480,-500.0,0.00020855,2]
[318958861,1710466233489,-500.0,0.00020855,2]
[318958862,1710466233498,-500.0,0.00020855,2]
[318958863,1710466233507,-500.0,0.00020855,2]
[318958864,1710466233516,-500.0,0.00020855,2]
[318958865,1710466233525,-500.0,0.00020855,2]
[318958866,1710466233534,-500.0,0.00020855,2]
[318958867,1710466233543,-530.59322264,0.00020855,2]
[318958868,1710466233553,-155.41137118,0.00020855,2]
[318958869,1710466233562,-500.0,0.00020855,2]
[318958870,1710466233572,-374.55205344,0.00020855,2]
[318958871,1710466233581,-500.0,0.00020855,2]
[318958872,1710466233590,-500.0,0.00020855,2]
[318958873,1710466233599,-500.0,0.00020855,2]
[318958874,1710466233608,-500.0,0.00020855,2]
[318958875,1710466233618,-500.0,0.00020855,2]
[318958876,1710466233627,-500.0,0.00020855,2]
[318958877,1710466233636,-500.0,0.00020855,2]
[318958878,1710466233649,-500.0,0.00020855,2]
[318958879,1710466233660,-270.66,0.00020855,2]
[318958880,1710466233670,-500.0,0.00020855,2]
[318958881,1710466233680,-500.0,0.00020855,2]
[318958882,1710466233690,-500.0,0.00020855,2]
[318958883,1710466233700,-500.0,0.00020855,2]
[318958884,1710466233709,-500.0,0.00020855,2]
[318958885,1710466233719,-304.31321444,0.00020855,2]
[318958886,1710466233729,-408.8235095,0.00020855,2]
[318958887,1710466233739,-500.0,0.00020855,2]
[318958888,1710466233748,-295.97236771,0.00020855,2]
[318958889,1710466233758,-161.18566081,0.00020855,2]
[318958890,1710466233767,-500.0,0.00020855,2]
[318958891,1710466233776,-500.0,0.00020855,2]
[318958892,1710466233788,-500.0,0.00020855,2]
[318958893,1710466233797,-174.37747574,0.00020855,2]
[318958894,1710466233806,-603.59773669,0.00020855,2]
[318958895,1710466233815,-500.0,0.00020855,2]
[318958896,1710466233824,-500.0,0.00020855,2]
[318958897,1710466233833,-500.0,0.00020855,2]
[318958898,1710466233842,-500.0,0.00020855,2]
[318958899,1710466233851,-500.0,0.00020855,2]
[318958900,1710466233860,-589.13654815,0.00020855,2]
[318958901,1710466233869,-500.0,0.00020855,2]
[318958902,1710466233879,-500.0,0.00020855,2]
[318958903,1710466233888,-500.0,0.00020855,2]
[318958904,1710466233897,-500.0,0.00020855,2]
[318958905,1710466233906,-500.0,0.00020855,2]
[318958906,1710466233918,-500.0,0.00020855,2]
[318958907,1710466233927,-500.0,0.00020855,2]
[318958908,1710466233936,-500.0,0.00020855,2]
[318958909,1710466233944,-500.0,0.00020855,2]
[318958910,1710466233953,-500.0,0.00020855,2]
[318958911,1710466233962,-500.0,0.00020855,2]
[318958912,1710466233971,-500.0,0.00020855,2]
[318958913,1710466233980,-500.0,0.00020855,2]
[318958914,1710466233989,-500.0,0.00020855,2]
[318958915,1710466233998,-500.0,0.00020855,2]
[318958916,1710466234007,-445.66447498,0.00020855,2]
[318958917,1710466234016,-608.8,0.00020855,2]
[318958918,1710466234026,-500.0,0.00020855,2]
[318958919,1710466234043,-500.0,0.00020855,2]
[318958920,1710466234055,-500.0,0.00020855,2]
[318958921,1710466234068,-500.0,0.00020855,2]
[318958922,1710466234078,-607.8,0.00020855,2]
[318958923,1710466234088,-641.59,0.00020855,2]
[318958924,1710466234097,-500.0,0.00020855,2]
[318958925,1710466234107,-500.0,0.00020855,2]
[318958926,1710466234117,-541.99534167,0.00020855,2]
[318958927,1710466234127,-500.0,0.00020855,2]
[318958928,1710466234136,-500.0,0.00020855,2]
[318958929,1710466234145,-500.0,0.00020855,2]
[318958930,1710466234155,-220.43159208,0.00020855,2]
[318958931,1710466234167,-500.0,0.00020855,2]
[318958932,1710466234176,-500.0,0.00020855,2]
[318958933,1710466234185,-500.0,0.00020855,2]
[318958934,1710466234195,-500.0,0.00020855,2]
[318958935,1710466234204,-500.0,0.00020855,2]
[318958936,1710466234213,-500.0,0.00020855,2]
[318958937,1710466234223,-500.0,0.00020855,2]
[318958938,1710466234232,-500.0,0.00020855,2]
[318958939,1710466234242,-500.0,0.00020855,2]